bitfinex/quotes_ETHUSD_20250620
["timestamp","ask_amount","ask_price","bid_price","bid_amount"]
[1750442044311,10.0,2406.9,2406.1,1.0386]
[1750442044484,4.15527443,2406.6,2406.1,1.0386]
[1750442044669,9.581,2406.5,2405.9,4.15642973]
[1750442044883,0.0596,2406.8,2405.9,4.15644873]
[1750442045083,0.9555,2407.3,2407.2,4.15420405]
[1750442045287,0.9555,2407.3,2406.5,1.0386]
[1750442045288,9.579,2407.3,2406.7,0.55]
[1750442045482,9.579,2407.3,2406.6,10.55]
[1750442045708,0.0596,2407.2,2406.7,4.1550078]
[1750442045909,9.58,2407.1,2406.9,4.15460543]
[1750442046225,10.4416,2407.6,2407.0,4.15454923]
[1750442046396,3.152,2407.2,2406.6,0.55]
[1750442046592,3.152,2407.4,2407.2,4.15411712]
[1750442046783,0.9555,2407.9,2407.7,4.15318595]
[1750442046983,0.0596,2408.2,2407.4,0.59152913]
[1750442047187,9.576,2408.2,2407.6,0.55]
[1750442047423,9.576,2408.2,2408.1,4.15265146]
[1750442047619,0.0596,2408.6,2408.2,4.15238811]
[1750442047826,9.574,2408.5,2408.2,4.15238461]
[1750442048027,0.0596,2408.6,2407.5,4.70368639]
[1750442048028,0.0596,2408.6,2408.3,0.04152049]
[1750442048323,0.9555,2408.7,2408.3,0.04152049]
[1750442048324,9.573,2408.5,2408.4,4.15205318]
[1750442049027,9.573,2408.5,2408.4,4.15213419]
[1750442049226,9.573,2408.5,2408.2,4.1523495]
[1750442049387,0.0596,2409.0,2408.5,4.15195041]
[1750442049388,4.21074957,2409.0,2408.5,4.15195041]
[1750442049722,20.62454819,2409.5,2408.6,4.15172514]
[1750442049723,12.7796,2408.9,2408.6,4.15172514]
[1750442050134,0.9971,2409.1,2408.7,4.15155075]
[1750442050337,0.9971,2409.1,2407.7,16.47422287]
[1750442050338,0.0596,2408.9,2407.7,0.9895]
[1750442050508,0.9971,2408.5,2407.3,0.9895]
[1750442050712,0.0596,2408.2,2406.6,5.14473597]
[1750442050916,0.9971,2408.5,2407.3,0.8686]
[1750442051143,0.9104,2408.9,2407.8,4.15316886]
[1750442051444,4.20978461,2409.6,2407.7,0.8686]
[1750442051445,9.563,2409.1,2408.2,4.15247902]
[1750442051601,9.563,2409.1,2408.5,0.55]
[1750442051800,9.563,2409.1,2409.0,4.15110004]
[1750442052017,0.97,2409.6,2408.8,0.55]
[1750442052218,9.561,2409.5,2409.3,4.15049716]
[1750442052416,0.0596,2409.4,2409.2,4.15067347]
[1750442052745,0.0596,2409.4,2408.8,0.55]
[1750442052746,9.561,2409.5,2409.1,4.15083331]
[1750442053648,4.15161307,2408.8,2408.3,0.9025]
[1750442053807,0.0596,2408.6,2408.2,4.15246942]
[1750442054145,0.0596,2408.6,2408.3,4.15227457]
[1750442054146,3.152,2408.6,2408.3,4.15227457]
[1750442054309,9.555,2408.5,2408.3,4.15227457]
[1750442054510,9.555,2408.5,2407.6,4.15342182]
[1750442054746,9.555,2408.5,2408.3,4.15228899]
[1750442054927,9.555,2408.5,2408.2,4.15240575]
[1750442055320,9.55,2408.4,2407.9,4.15284459]
[1750442055524,9.55,2408.3,2408.2,4.7024516]
[1750442055850,10.386,2408.9,2408.8,4.1514447]
[1750442056052,19.935,2408.9,2408.8,4.1514447]
[1750442056206,19.935,2408.9,2408.8,0.55]
[1750442056207,9.548,2408.9,2408.8,0.55]
[1750442056411,9.548,2408.9,2408.7,4.15152459]
[1750442056907,9.6076,2408.9,2408.3,0.9025]
[1750442057108,12.7036,2408.8,2407.9,0.8793]
[1750442057343,12.644,2408.8,2407.9,0.8793]
[1750442057542,0.0596,2408.5,2407.4,0.8793]
[1750442057751,4.1522164,2408.4,2407.7,4.15323065]
[1750442057968,0.0596,2408.5,2407.4,10.8793]
[1750442058145,0.0596,2408.2,2407.7,4.15325525]
[1750442058355,10.0,2407.7,2406.6,0.9181]
[1750442058680,12.6986,2407.6,2407.3,4.15401605]
[1750442059290,9.538,2407.7,2407.6,4.70351387]
[1750442059978,9.538,2407.7,2407.6,4.15351387]
[1750442060188,0.0596,2407.5,2406.9,4.15467468]
[1750442060480,0.0596,2407.5,2405.5,16.47422287]
[1750442060481,10.0596,2407.3,2406.1,0.9181]
[1750442060687,10.0596,2407.3,2406.7,4.15492757]
[1750442060688,4.15432368,2407.2,2406.7,4.15492757]
[1750442060975,0.0596,2407.0,2406.7,4.15492757]
[1750442061176,4.15474247,2406.9,2406.1,0.9181]
[1750442061388,14.15462197,2407.0,2406.1,0.9181]
[1750442061596,0.0596,2406.9,2406.3,4.15573816]
[1750442061886,10.0,2407.2,2406.1,5.58147624]
[1750442062043,0.0596,2406.8,2405.5,0.8952]
[1750442062244,0.0596,2406.4,2406.0,4.15618524]
[1750442062444,0.0596,2406.4,2405.5,0.8952]
[1750442062445,9.529,2406.3,2405.5,0.8952]
[1750442062647,9.529,2406.3,2406.1,4.15594191]
[1750442062973,0.0596,2407.1,2406.2,0.04155658]
[1750442063285,10.384,2407.6,2406.8,4.15489446]
[1750442063286,9.526,2406.9,2406.8,4.15489446]
[1750442063469,10.0,2407.3,2407.0,4.15445746]
[1750442063648,9.525,2407.2,2407.1,4.15437663]
[1750442063977,9.525,2407.2,2406.3,0.8913]
[1750442064181,9.5846,2407.2,2406.9,4.15471114]
[1750442064383,9.5846,2407.2,2406.8,4.15480187]
[1750442064582,9.5846,2407.2,2406.9,4.15470159]
[1750442064780,0.0587,2406.8,2405.9,0.9398]
[1750442064982,12.625,2406.7,2405.9,0.9398]
[1750442065175,0.0587,2406.6,2406.3,4.1556785]
[1750442065370,0.0587,2406.6,2406.4,4.15557389]
[1750442065690,9.522,2406.5,2406.3,4.15569265]
[1750442065846,9.522,2406.5,2406.2,4.15578168]
[1750442066182,0.0587,2406.4,2406.2,4.15578168]
[1750442067120,4.0532,2406.6,2405.3,4.15743955]
[1750442067121,1.0119,2406.6,2405.3,4.15743955]
[1750442067346,1.0119,2406.6,2405.1,0.8968]
[1750442067347,12.622,2406.3,2406.0,4.15626861]
[1750442067802,12.6807,2406.3,2405.9,4.1562952]
[1750442068099,0.0587,2406.2,2405.8,4.15649023]
[1750442068286,12.6747,2406.2,2405.8,4.15649023]
[1750442069007,3.1597,2406.5,2406.1,4.15599534]
[1750442069300,3.1597,2406.5,2405.9,4.15644749]
[1750442069301,23.6676774,2406.4,2405.9,4.15644749]
[1750442069459,0.0587,2406.3,2406.0,4.15624048]
[1750442069664,4.21446915,2406.3,2405.8,4.15651422]
[1750442069870,0.0587,2406.3,2405.4,0.41574396]
[1750442070162,12.611,2406.2,2405.5,0.04155936]
[1750442070361,9.509,2406.1,2406.0,4.15627597]
[1750442070563,9.509,2406.1,2405.9,4.1563498]
[1750442070767,9.508,2406.0,2405.8,4.15645241]
[1750442071069,9.508,2406.0,2405.5,0.55]
[1750442071070,0.0587,2405.9,2405.5,4.15705891]
[1750442071390,9.508,2406.0,2405.9,4.15644873]
[1750442071592,9.505,2406.0,2405.9,4.15631245]
[1750442071752,0.0587,2406.3,2406.0,4.1561844]
[1750442071956,0.9532,2406.6,2406.1,0.55]
[1750442072192,0.9532,2406.6,2406.5,4.15541242]
[1750442072387,13.65832586,2406.6,2406.1,4.15602746]
[1750442072579,0.0587,2406.5,2406.1,4.15610323]
[1750442072781,0.0587,2406.5,2406.2,4.155759]
[1750442073104,0.0587,2406.5,2406.3,4.15575528]
[1750442073304,0.0587,2406.5,2406.2,4.15583297]
[1750442073913,4.15542885,2406.5,2405.6,5.0977933]
[1750442074105,9.5617,2406.6,2406.2,4.15589981]
[1750442074406,0.0587,2406.5,2406.1,4.1559418]
[1750442074604,9.497,2406.4,2405.6,2.45067933]
[1750442074762,10.4231,2406.4,2405.7,4.74831005]
[1750442074955,10.4231,2406.4,2405.2,0.9409]
[1750442074956,14.57871895,2406.4,2405.2,0.9409]
[1750442075162,0.0587,2406.2,2404.7,0.9409]
[1750442075402,10.0,2405.7,2404.7,0.9409]
[1750442075585,4.15723956,2405.5,2404.7,0.9409]
[1750442075770,0.9261,2405.8,2404.8,0.55]
[1750442075955,9.492,2405.9,2405.8,4.70661844]
[1750442076472,9.492,2405.9,2405.8,4.15661844]
[1750442076794,9.49,2405.9,2405.7,4.15675478]
[1750442076989,9.49,2405.9,2405.8,4.15662149]
[1750442078190,5.09790558,2406.6,2405.8,4.15662149]
[1750442078191,0.0587,2407.0,2405.8,0.87289938]
[1750442078397,0.0587,2406.8,2406.5,4.15533505]
[1750442079104,0.0587,2406.8,2406.6,4.15522687]
[1750442079105,9.483,2406.7,2406.6,4.15522687]
[1750442079265,9.483,2406.7,2405.8,0.83133763]
[1750442079266,0.0587,2406.8,2406.4,4.15556573]
[1750442079591,9.481,2406.7,2406.6,4.15523459]
[1750442079793,9.481,2406.7,2406.1,4.15594077]
[1750442079999,10.0,2406.4,2405.5,0.8755]
[1750442080165,20.393,2406.6,2405.0,0.8755]
[1750442080166,0.0587,2406.2,2405.0,0.8755]
[1750442080371,12.58,2406.1,2405.8,4.15653821]
[1750442080592,0.0587,2406.0,2405.7,4.15671593]
[1750442080767,0.0587,2406.0,2405.8,4.15660274]
[1750442080963,0.0587,2406.0,2405.7,4.15673909]
[1750442081163,3.102,2406.2,2406.1,4.15600225]
[1750442081368,0.0587,2406.1,2405.2,10.0]
[1750442081605,0.0587,2406.1,2405.8,4.15659721]
[1750442082170,0.0587,2406.1,2405.7,4.15670327]
[1750442082390,12.578,2406.2,2405.8,4.1564842]
[1750442082597,12.577,2406.1,2405.5,0.55]
[1750442082902,12.577,2406.1,2405.9,4.15644873]
[1750442082903,9.475,2406.0,2405.9,4.15644873]
[1750442083309,4.2142019,2406.5,2405.6,0.55]
[1750442083310,0.0587,2406.5,2405.6,0.55]
[1750442083643,9.468,2406.4,2406.2,0.55]
[1750442083835,3.1607,2407.0,2406.9,4.15472184]
[1750442083991,0.8422,2407.1,2407.0,4.15454923]
[1750442084328,9.466,2407.1,2407.0,4.15454923]
[1750442084534,9.466,2407.1,2406.2,0.55]
[1750442084696,9.466,2407.1,2406.8,4.15480028]
[1750442085030,9.466,2407.1,2406.7,4.1549831]
[1750442085223,0.0587,2407.0,2406.7,4.1549831]
[1750442085420,9.466,2407.1,2406.1,0.55]
[1750442085597,0.0587,2407.0,2406.7,4.1549461]
[1750442085938,0.0587,2407.8,2407.4,4.15385893]
[1750442086241,0.8708,2407.9,2407.0,0.55]
[1750442086527,0.8708,2407.9,2407.4,4.15378656]
[1750442086829,12.5667,2407.8,2407.0,10.0]
[1750442087130,12.5667,2407.8,2407.5,4.15364967]
[1750442087515,12.5667,2407.8,2407.6,4.1535033]
[1750442087854,12.503,2407.7,2407.5,4.153629]
[1750442088343,12.503,2407.7,2407.1,0.55]
[1750442088550,12.503,2407.7,2407.6,4.15351387]
[1750442089050,3.05,2407.9,2407.8,4.15316886]
[1750442089218,10.0,2408.1,2407.8,4.15316886]
[1750442089410,12.497,2408.0,2407.7,4.15326009]
[1750442089645,12.5557,2408.0,2407.3,4.1540268]
[1750442089856,12.5557,2408.0,2407.7,4.1532331]
[1750442090036,12.5557,2408.0,2407.5,4.15362402]
[1750442090037,0.0587,2407.9,2407.5,4.15362402]
[1750442090356,14.15322674,2407.8,2407.3,4.15401164]
[1750442090657,4.92387291,2407.5,2407.0,4.15453122]
[1750442090960,10.0587,2407.3,2406.3,0.8124]
[1750442091258,10.0,2406.9,2406.4,4.15549755]
[1750442091418,13.59389722,2406.8,2406.3,4.15566254]
[1750442091750,0.0587,2406.7,2406.3,4.15566254]
[1750442091951,0.0587,2406.7,2405.9,0.8124]
[1750442092159,0.0587,2407.0,2406.7,4.15506136]
[1750442092449,0.0587,2407.0,2406.6,4.19669932]
[1750442092450,3.049,2406.8,2406.6,4.19669932]
[1750442092618,7.20390961,2406.8,2406.4,4.15554289]
[1750442092820,0.0587,2406.7,2406.3,4.15566595]
[1750442093211,0.7701,2407.1,2406.4,4.1971386]
[1750442093452,9.432,2407.0,2406.9,4.15472184]
[1750442093653,0.0587,2407.5,2406.6,1.3509]
[1750442093815,3.049,2407.5,2407.2,4.15408442]
[1750442094012,9.43,2407.4,2407.3,4.15403148]
[1750442094653,11.184,2407.6,2407.3,4.15403148]
[1750442094835,12.478,2407.5,2406.6,0.8009]
[1750442095063,12.535,2407.5,2407.2,4.15411018]
[1750442095844,12.474,2407.4,2407.2,4.15411018]
[1750442096045,12.474,2407.4,2407.3,4.15389567]
[1750442096245,4.21110661,2407.3,2406.4,0.55]
[1750442096481,10.0,2407.3,2406.4,0.55]
[1750442096691,10.0,2407.3,2406.9,4.15470569]
[1750442096893,0.057,2407.2,2406.3,4.70575566]
[1750442097049,9.418,2407.1,2407.0,4.15444256]
[1750442097464,9.418,2407.1,2406.9,4.15468362]
[1750442097649,0.057,2407.0,2406.6,4.15514463]
[1750442097898,3.049,2407.3,2407.0,4.15454754]
[1750442098184,3.049,2407.3,2406.2,4.9824249]
[1750442098185,9.473,2407.2,2406.3,10.55]
[1750442098347,14.2134281,2407.2,2406.6,4.15520515]
[1750442098561,0.057,2407.1,2406.9,4.15470433]
[1750442098763,4.15440258,2407.1,2406.6,4.15514728]
[1750442098959,0.057,2407.1,2406.8,4.1548588]
[1750442099164,12.46,2407.0,2406.8,4.15480842]
[1750442099382,9.41,2406.9,2406.8,4.19644096]
[1750442099690,3.049,2407.2,2406.6,4.15520875]
[1750442099845,3.049,2407.2,2407.1,4.15425866]
[1750442100047,12.458,2407.2,2407.1,4.15425866]
[1750442100284,13.44,2407.6,2407.5,4.15368639]
[1750442100605,3.049,2408.5,2407.8,0.55]
[1750442100751,9.406,2408.4,2407.9,0.04151938]
[1750442100945,9.406,2408.4,2407.2,0.8131]
[1750442100946,0.057,2408.3,2407.2,0.8131]
[1750442101145,4.15247902,2408.2,2407.5,4.1536126]
[1750442101353,4.15247902,2408.2,2407.1,4.15437319]
[1750442101354,4.15341516,2407.7,2407.1,4.15437319]
[1750442101548,0.057,2407.5,2406.7,0.8131]
[1750442101763,12.451,2407.4,2407.0,4.15442063]
[1750442101962,9.402,2407.3,2406.7,0.8131]
[1750442102165,9.459,2407.3,2407.0,4.15438399]
[1750442102512,9.4,2407.2,2407.1,4.15420823]
[1750442103310,10.0,2407.8,2407.1,4.15420823]
[1750442103311,3.049,2407.8,2407.7,4.15334136]
[1750442103470,12.444,2407.8,2407.7,4.15334136]
[1750442104153,20.62584302,2408.7,2408.6,4.15178942]
[1750442104154,0.8341,2408.7,2408.6,4.15178942]
[1750442104353,9.392,2408.7,2408.3,0.55]
[1750442104663,3.106,2409.0,2408.5,4.15181229]
[1750442104664,0.057,2409.0,2408.5,4.15181229]
[1750442104863,0.057,2408.8,2408.6,4.15177525]
[1750442105189,9.39,2408.7,2408.6,4.15177525]
[1750442105349,9.39,2408.7,2408.2,4.15247174]
[1750442105350,9.39,2408.7,2407.2,14.56161156]
[1750442105551,0.057,2407.5,2407.0,4.15444246]
[1750442105789,0.057,2407.5,2405.7,3.049]
[1750442105790,0.057,2406.8,2406.3,4.97576392]
[1750442105991,3.049,2407.1,2406.9,4.1545876]
[1750442106166,9.384,2407.0,2406.3,5.32260922]
[1750442106374,0.057,2407.3,2406.8,4.15485344]
[1750442106573,3.049,2407.1,2406.7,4.15498298]
[1750442106804,3.049,2407.1,2406.3,1.69927635]
[1750442106805,9.382,2407.0,2406.3,1.69927635]
[1750442106986,4.15091028,2409.2,2407.3,4.15399053]
[1750442106987,10.388,2407.9,2407.3,4.15399053]
[1750442107180,9.381,2407.7,2407.4,4.15378655]
[1750442107378,9.438,2407.7,2407.4,4.15378655]
[1750442107567,17.59002996,2407.9,2407.6,4.15351387]
[1750442107568,10.388,2407.9,2407.6,4.15351387]
[1750442107763,9.379,2407.7,2407.0,0.7587]
[1750442107968,9.379,2407.7,2407.5,4.15367842]
[1750442108704,10.388,2407.9,2407.6,4.15351387]
[1750442109001,12.424,2407.8,2407.1,0.55]
[1750442109210,10.0,2407.7,2407.1,0.55]
[1750442109372,12.481,2407.8,2407.3,4.15398668]
[1750442109703,9.373,2407.7,2407.6,4.15340671]
[1750442109907,9.43,2407.7,2407.6,4.15351387]
[1750442110102,9.371,2407.7,2407.6,4.15343939]
[1750442110467,3.049,2408.1,2407.6,1.3807232]
[1750442110673,3.049,2408.1,2407.3,10.0]
[1750442110674,11.1922,2408.8,2408.0,0.55]
[1750442110867,11.1922,2408.8,2407.5,0.8137]
[1750442110868,0.057,2408.5,2407.5,0.8137]
[1750442111204,0.057,2408.6,2408.3,4.15224654]
[1750442111414,10.388,2408.8,2408.5,4.15194874]
[1750442111581,0.057,2408.6,2407.6,0.55]
[1750442111770,0.8042,2408.4,2407.5,0.8137]
[1750442111973,9.364,2408.3,2408.2,4.15238147]
[1750442112313,0.7855,2408.7,2408.4,4.15204725]
[1750442112470,9.362,2408.6,2408.3,4.15221516]
[1750442112668,0.057,2408.5,2408.2,4.15240395]
[1750442112882,0.057,2408.5,2408.1,4.15265146]
[1750442113119,11.43563348,2408.5,2407.1,0.7808]
[1750442113285,2.547,2408.4,2407.9,4.15299638]
[1750442113492,12.407,2408.3,2407.9,4.15299638]
[1750442113826,0.057,2408.2,2407.9,4.15299325]
[1750442114036,0.7654,2408.1,2406.9,4.15468569]
[1750442114187,4.15291854,2408.0,2407.5,4.15357374]
[1750442114380,10.057,2407.8,2407.5,4.15357374]
[1750442114785,0.057,2407.7,2407.4,4.15380634]
[1750442115012,0.057,2407.7,2407.1,0.7808]
[1750442115226,0.057,2407.7,2407.2,4.15420405]
[1750442115439,3.048,2407.6,2406.7,0.8039]
[1750442115582,12.4,2407.5,2407.2,4.15416951]
[1750442115785,0.057,2407.6,2406.7,0.8039]
[1750442115984,12.399,2407.5,2406.9,0.55]
[1750442116218,12.456,2407.5,2407.3,4.15401408]
[1750442116915,12.456,2407.5,2406.8,0.55]
[1750442117116,12.456,2407.5,2407.3,4.15393451]
[1750442117484,12.456,2407.5,2407.3,4.15401782]
[1750442117709,12.399,2407.5,2407.2,4.15415741]
[1750442117912,0.057,2407.4,2407.2,4.15418809]
[1750442118098,12.399,2407.5,2407.4,4.15385893]
[1750442118305,7.40810519,2408.1,2407.2,0.55]
[1750442118306,0.057,2408.0,2407.2,0.55]
[1750442118507,10.388,2408.8,2408.0,4.15282392]
[1750442118508,2.993,2408.3,2408.0,4.15282392]
[1750442118714,2.993,2408.3,2408.2,4.15247902]
[1750442118935,10.445,2408.8,2408.2,4.15247902]
[1750442119091,10.388,2408.8,2408.7,4.15161705]
[1750442119424,19.728,2408.8,2408.2,0.8086]
[1750442119609,19.785,2408.8,2408.0,0.55]
[1750442119919,19.785,2408.8,2408.4,4.15204778]
[1750442119920,0.057,2408.7,2408.4,4.15204778]
[1750442120123,15.03037278,2408.7,2407.8,0.8086]
[1750442120325,15.03037278,2408.7,2407.3,0.8086]
[1750442120326,4.15266735,2408.1,2407.3,0.8086]
[1750442120485,4.15266735,2408.1,2406.8,4.15472976]
[1750442120486,0.8787,2408.0,2406.7,10.8086]
[1750442120821,0.057,2407.7,2406.8,1.49762402]
[1750442121129,4.1537657,2407.5,2407.0,4.15438811]
[1750442121423,0.057,2407.3,2406.9,4.15464971]
[1750442121598,0.057,2407.3,2407.1,4.15437663]
[1750442121798,0.057,2407.3,2406.4,0.8265]
[1750442121799,12.323,2407.2,2406.4,0.8265]
[1750442122122,12.323,2407.2,2406.5,4.15541242]
[1750442122298,12.38,2407.2,2406.9,4.15460502]
[1750442122489,12.38,2407.2,2406.4,0.8265]
[1750442122685,12.321,2407.1,2406.0,1.00632218]
[1750442122916,16.47552886,2407.1,2406.6,4.15513295]
[1750442123098,4.15464415,2407.0,2406.5,4.15532847]
[1750442123304,0.057,2406.9,2406.6,4.15521623]
[1750442123523,0.057,2406.9,2406.7,4.15505004]
[1750442123730,0.057,2406.9,2406.2,4.15591338]
[1750442123731,0.057,2406.9,2406.0,5.16245516]
[1750442123903,4.15443262,2407.1,2406.6,4.15512651]
[1750442124101,10.8662,2407.3,2406.3,0.55]
[1750442124315,16.47129985,2407.2,2406.7,4.15500785]
[1750442124503,0.0567,2407.1,2406.7,4.15500785]
[1750442124826,10.8092,2407.3,2406.8,4.15480893]
[1750442124827,9.323,2407.0,2406.8,4.15480893]
[1750442125126,9.323,2407.0,2406.8,4.154815]
[1750442125312,9.323,2407.0,2406.9,4.15472184]
[1750442125512,10.0,2407.5,2407.1,4.15427656]
[1750442125850,0.0567,2408.6,2407.6,0.55]
[1750442126003,4.15240256,2408.3,2407.7,0.04152537]
[1750442126329,0.8364,2408.1,2407.5,4.15353133]
[1750442126511,0.0567,2407.9,2407.6,4.15342237]
[1750442126913,2.993,2407.8,2407.6,4.15342237]
[1750442127494,2.993,2407.8,2407.7,4.15334136]
[1750442127724,9.314,2407.8,2407.7,4.15334136]
[1750442127921,9.314,2407.8,2407.6,4.15342566]
[1750442128113,9.314,2407.8,2407.7,4.15334136]
[1750442128315,9.314,2407.8,2407.0,4.15437933]
[1750442128516,0.0567,2407.7,2406.9,0.8396]
[1750442128816,0.0567,2407.7,2406.4,0.0125]
[1750442128817,0.0567,2407.5,2406.4,0.0415406]
[1750442129019,0.0567,2407.5,2406.1,0.7746]
[1750442129020,0.831,2406.9,2406.5,4.15532047]
[1750442129230,9.3667,2406.8,2406.1,0.7746]
[1750442129393,9.3667,2406.8,2406.5,4.15539718]
[1750442129600,9.3667,2406.8,2406.1,0.7746]
[1750442129601,9.31,2406.8,2406.4,4.15552233]
[1750442129811,13.5217412,2406.8,2406.2,4.15593051]
[1750442130131,0.0567,2406.7,2406.4,4.15550529]
[1750442130306,0.8134,2407.3,2407.2,4.15420405]
[1750442130625,0.0567,2407.2,2406.9,4.15461537]
[1750442130831,13.382,2407.6,2406.6,0.55]
[1750442130832,10.4457,2407.6,2407.3,4.1539993]
[1750442130996,3.0497,2407.3,2407.0,4.15450362]
[1750442131192,10.389,2407.6,2406.6,0.55]
[1750442131396,12.296,2407.5,2407.2,4.15409072]
[1750442131723,12.3507,2407.4,2407.2,4.1541119]
[1750442131916,10.389,2407.6,2406.7,0.55]
[1750442132112,12.294,2407.5,2406.9,4.15468766]
[1750442132433,10.389,2407.6,2407.5,4.15368639]
[1750442132631,0.0567,2408.3,2407.9,4.15299638]
[1750442132798,9.298,2408.2,2408.1,4.152578]
[1750442132992,9.298,2408.2,2408.1,4.15265146]
[1750442133833,9.298,2408.2,2407.5,0.83075453]
[1750442134130,9.298,2408.2,2407.7,4.15323756]
[1750442134332,12.3427,2408.1,2407.8,4.15315856]
[1750442135037,12.3427,2408.1,2407.9,4.15294145]
[1750442135435,12.286,2408.1,2406.9,4.94406715]
[1750442135633,0.0567,2407.6,2406.9,0.7895]
[1750442135800,9.288,2407.5,2406.5,0.7895]
[1750442136003,12.28,2407.4,2407.3,4.15403148]
[1750442136509,9.286,2407.4,2407.3,4.15403148]
[1750442136709,2.993,2407.6,2407.5,4.15368639]
[1750442136941,12.278,2407.6,2407.5,4.15368639]
[1750442137250,12.278,2407.6,2406.7,0.0125]
[1750442137251,0.8488,2406.5,2405.5,0.8146]
[1750442137402,12.276,2406.4,2405.8,4.15650768]
[1750442137598,15.00430978,2406.5,2405.9,4.15644635]
[1750442137844,12.274,2406.4,2405.5,0.8146]
[1750442138009,4.15586033,2406.3,2405.7,4.15668999]
[1750442138334,0.8488,2406.5,2405.5,4.9717048]
[1750442138548,9.3367,2406.2,2405.8,4.15649564]
[1750442138750,9.3367,2406.2,2405.7,4.15662945]
[1750442138962,9.281,2406.1,2405.6,0.51885571]
[1750442139143,9.281,2406.1,2405.9,4.15636649]
[1750442139315,9.281,2406.1,2405.7,4.15667374]
[1750442139516,9.281,2406.1,2405.8,4.15653047]
[1750442139745,9.281,2406.1,2406.0,4.15627597]
[1750442139915,9.281,2406.1,2405.9,4.15637477]
[1750442140119,9.281,2406.1,2406.0,4.15627597]
[1750442140822,9.281,2406.1,2405.9,4.15635854]
[1750442141033,9.281,2406.1,2405.8,4.15659937]
[1750442141432,9.281,2406.1,2405.9,4.15642486]
[1750442141633,9.272,2406.0,2405.9,4.15642486]
[1750442142267,4.15530118,2406.6,2405.9,4.15642486]
[1750442142268,0.8021,2406.9,2406.2,0.55]
[1750442142602,9.271,2406.6,2406.5,4.70539351]
[1750442142866,9.271,2406.6,2406.5,4.74694281]
[1750442143221,9.271,2406.6,2406.5,4.70539351]
[1750442144340,9.271,2406.6,2406.4,4.15553773]
[1750442144567,2.994,2407.1,2406.2,4.15593051]
[1750442144722,13.41856399,2407.0,2406.5,4.15532998]
[1750442144920,4.21152098,2406.9,2406.4,4.15558063]
[1750442145262,0.0567,2406.9,2406.5,4.15540768]
[1750442145557,0.8588,2407.3,2406.6,4.15522618]
[1750442145773,0.8588,2407.3,2406.0,0.7853]
[1750442145774,4.15800415,2405.0,2404.9,0.17514795]
[1750442145981,4.15800415,2405.0,2403.0,0.7853]
[1750442145982,0.8875,2404.6,2403.1,0.06]
[1750442146278,10.0,2404.4,2403.1,0.06]
[1750442146570,4.1601928,2403.8,2403.1,0.06]
[1750442146770,0.04154791,2403.7,2403.6,4.16042602]
[1750442147062,9.0015137,2404.3,2403.7,4.16025294]
[1750442147267,9.0015137,2404.3,2403.5,0.773]
[1750442147268,9.26,2404.2,2403.8,0.04159982]
[1750442147431,9.26,2404.2,2403.5,0.833]
[1750442147643,0.04154791,2404.1,2403.5,0.833]
[1750442147841,9.0015137,2404.3,2403.5,0.833]
[1750442148074,9.263,2404.2,2403.5,0.833]
[1750442148258,9.263,2404.2,2404.0,4.15957394]
[1750442148453,9.263,2404.2,2404.0,4.15970296]
[1750442148767,9.263,2404.2,2403.5,4.93357092]
[1750442148768,9.263,2404.2,2403.9,0.06]
[1750442148972,9.263,2404.2,2404.1,4.15956075]
[1750442150736,9.0015137,2404.3,2404.2,4.76938773]
[1750442150940,18.2635137,2404.3,2404.2,4.76938773]
[1750442151961,9.262,2404.3,2404.2,4.15938773]
[1750442152672,0.8175,2405.0,2404.3,4.15921474]
[1750442152835,12.208,2404.9,2404.6,4.1585944]
[1750442153161,9.26,2404.8,2404.6,4.15864068]
[1750442153323,9.26,2404.8,2404.3,4.15905888]
[1750442153528,9.26,2404.8,2404.3,4.15912283]
[1750442153529,0.04154791,2404.7,2404.3,4.15912283]
[1750442153757,0.04154791,2404.7,2403.8,0.06]
[1750442153962,4.20017839,2404.7,2404.1,4.15946091]
[1750442154259,0.04154791,2404.7,2404.2,4.15933483]
[1750442154450,0.04154791,2404.7,2404.3,4.15904299]
[1750442154653,0.04154791,2404.7,2404.3,4.15905941]
[1750442155963,4.20011253,2404.7,2404.2,4.15932553]
[1750442156460,0.04154791,2404.7,2403.9,0.55]
[1750442156759,0.04154791,2404.7,2404.3,4.15910299]
[1750442156932,0.04154791,2404.7,2404.1,4.15956075]
[1750442157131,9.258,2404.6,2404.4,4.15891488]
[1750442157339,9.258,2404.6,2404.3,4.15908466]
[1750442157542,0.04154791,2404.5,2404.4,4.15904175]
[1750442157931,0.04154791,2404.5,2404.3,4.15908466]
[1750442157932,0.04154791,2404.5,2404.3,4.15914022]
[1750442158164,0.04154791,2404.5,2404.4,4.15904175]
[1750442158671,0.04154791,2404.5,2404.0,4.15973377]
[1750442158672,0.04154791,2404.9,2404.2,0.0579]
[1750442158851,0.85904791,2405.0,2404.4,4.21694175]
[1750442159035,9.255,2404.8,2404.7,4.15852289]
[1750442159369,0.8175,2405.0,2404.9,4.15817705]
[1750442159571,4.58101765,2405.5,2404.4,0.0579]
[1750442159572,0.8041,2405.6,2405.1,4.15768887]
[1750442159863,0.8041,2405.6,2404.2,4.93307845]
[1750442159864,0.34647267,2405.5,2405.4,4.15731271]
[1750442160029,9.60147267,2405.5,2405.4,4.15731271]
[1750442160236,0.34647267,2405.5,2405.4,4.15731271]
[1750442160943,0.34647267,2405.5,2405.4,4.80678314]
[1750442161132,16.47422287,2406.7,2405.4,4.80678314]
[1750442161133,0.7932,2406.5,2405.5,1.345]
[1750442161328,1.08588,2407.2,2406.8,4.15487505]
[1750442161329,0.7932,2407.1,2406.8,4.15487505]